bitfinex/quotes_SOLUSD_20220128
["timestamp","ask_amount","ask_price","bid_price","bid_amount"]
[1643391653273,0.25,91.327,91.271,6.25]
[1643391653478,0.25,91.327,91.271,0.25]
[1643391654277,0.25,91.327,91.26,16.436]
[1643391654479,0.25,91.327,91.23,13.58]
[1643391654676,0.25,91.327,91.24,6.0]
[1643391655077,0.25,91.327,91.241,6.0]
[1643391655279,0.25,91.327,91.24,6.0]
[1643391655879,16.443,91.32,91.24,6.0]
[1643391656080,16.443,91.32,91.241,6.0]
[1643391656879,39.56008612,91.328,91.241,6.0]
[1643391657279,39.56008612,91.328,91.242,0.25]
[1643391657481,39.56008612,91.328,91.244,6.0]
[1643391657680,16.5938,91.352,91.25,6.0]
[1643391657888,1.51569682,91.367,91.251,0.25]
[1643391658089,6.0,91.357,91.26,16.435]
[1643391658287,6.0,91.357,91.261,0.25]
[1643391658489,6.0,91.35,91.27,6.0]
[1643391658691,42.82048392,91.349,91.27,6.0]
[1643391658888,42.82048392,91.349,91.271,0.25]
[1643391659089,16.438,91.34,91.271,0.25]
[1643391659789,0.25,91.339,91.261,6.0]
[1643391659992,6.0,91.33,91.24,13.58]
[1643391660191,22.441,91.33,91.22,13.58]
[1643391660392,22.441,91.33,91.215,48.7955]
[1643391661195,22.441,91.33,91.22,16.442]
[1643391661395,22.441,91.33,91.233,6.0]
[1643391662996,22.441,91.33,91.24,6.0]
[1643391663497,0.25,91.329,91.224,109.1]
[1643391663699,0.25,91.329,91.234,6.0]
[1643391663894,0.25,91.329,91.235,0.25]
[1643391664694,16.441,91.33,91.235,0.25]
[1643391665095,16.441,91.33,91.24,16.439]
[1643391665316,16.441,91.33,91.241,0.25]
[1643391665617,16.441,91.33,91.25,6.0]
[1643391665819,16.441,91.33,91.251,0.25]
[1643391666017,0.25,91.329,91.241,24.078]
[1643391666217,16.443,91.32,91.241,23.828]
[1643391666417,16.443,91.32,91.215,24.381]
[1643391666418,45.18588281,91.319,91.215,24.381]
[1643391666615,6.0,91.31,91.18,15.08790487]
[1643391666814,6.0,91.309,91.17,13.58]
[1643391667016,6.0,91.3,91.17,13.58]
[1643391667214,19.58,91.3,91.17,13.58]
[1643391667414,6.0,91.298,91.17,13.58]
[1643391667617,36.21238869,91.289,91.171,109.1]
[1643391667814,36.21238869,91.289,91.18,6.0]
[1643391668015,6.0,91.279,91.181,6.0]
[1643391668417,6.0,91.279,91.182,0.25]
[1643391668721,36.21238869,91.289,91.182,127.42874381]
[1643391668918,36.21238869,91.289,91.182,151.58384381]
[1643391669118,36.21238869,91.289,91.21,16.444]
[1643391669318,0.25,91.288,91.211,0.25]
[1643391669519,54.817,91.33,91.221,109.1]
[1643391669719,15.09569682,91.34,91.222,22.9331]
[1643391669918,13.58,91.34,91.231,6.0]
[1643391670119,6.0,91.33,91.232,6.0]
[1643391670321,48.80214449,91.329,91.233,0.25]
[1643391670518,6.0,91.319,91.233,24.1931]
[1643391670920,0.25,91.318,91.243,6.0]
[1643391671821,0.25,91.319,91.243,6.0]
[1643391673326,22.444,91.31,91.234,23.0847]
[1643391674323,22.444,91.31,91.235,0.25]
[1643391675525,6.0,91.31,91.244,6.0]
[1643391675726,1.51569682,91.321,91.245,109.1]
[1643391675924,1.51569682,91.327,91.25,13.58]
[1643391676126,1.51569682,91.328,91.26,6.0]
[1643391676331,1.51569682,91.328,91.261,24.9034]
[1643391676525,1.51569682,91.335,91.271,6.0]
[1643391676726,1.51569682,91.339,91.271,6.0]
[1643391676930,1.51569682,91.342,91.272,0.25]
[1643391677325,1.51569682,91.343,91.272,0.25]
[1643391677527,1.51569682,91.346,91.28,6.0]
[1643391677726,1.51569682,91.343,91.28,6.0]
[1643391677926,1.51569682,91.344,91.281,0.25]
[1643391678126,36.30706797,91.347,91.281,6.25]
[1643391678726,34.79137115,91.347,91.281,6.25]
[1643391678928,0.25,91.346,91.281,6.25]
[1643391679326,34.79137115,91.347,91.281,6.25]
[1643391679531,1.51569682,91.352,91.282,109.1]
[1643391679729,1.51569682,91.354,91.283,131.6297]
[1643391679931,1.51569682,91.354,91.29,6.0]
[1643391680128,1.51569682,91.358,91.293,6.0]
[1643391680337,1.51569682,91.358,91.294,0.25]
[1643391680534,6.0,91.348,91.294,0.25]
[1643391680938,6.0,91.347,91.294,0.25]
[1643391681135,6.0,91.346,91.294,0.25]
[1643391681542,6.0,91.347,91.294,0.25]
[1643391684541,6.0,91.354,91.3,6.0]
[1643391684943,6.0,91.359,91.301,0.25]
[1643391685243,1.51569682,91.374,91.301,109.35]
[1643391685443,1.51569682,91.374,91.302,2.50409603]
[1643391685642,1.51569682,91.381,91.312,6.0]
[1643391685845,47.6656,91.422,91.313,24.2284]
[1643391685846,1.51569682,91.388,91.313,24.2284]
[1643391686043,1.51569682,91.387,91.323,6.0]
[1643391686246,1.51569682,91.387,91.324,0.25]
[1643391686442,1.51569682,91.39,91.324,0.25]
[1643391686648,1.51569682,91.391,91.324,0.25]
[1643391686843,1.51569682,91.392,91.324,0.25]
[1643391687246,1.51569682,91.393,91.324,0.25]
[1643391688044,1.51569682,91.396,91.33,16.423]
[1643391688243,47.50951532,91.398,91.33,16.423]
[1643391688443,1.51569682,91.401,91.34,6.0]
[1643391688643,1.51569682,91.406,91.34,6.0]
[1643391689044,1.51569682,91.408,91.341,6.0]
[1643391689251,1.51569682,91.412,91.342,0.25]
[1643391689447,41.28585472,91.411,91.342,0.25]
[1643391689647,6.0,91.41,91.342,0.25]
[1643391690047,6.0,91.41,91.35,6.0]
[1643391690245,0.25,91.409,91.351,0.25]
[1643391691349,0.25,91.409,91.35,6.0]
[1643391691586,1.51569682,91.405,91.33,6.0]
[1643391691984,1.51569682,91.402,91.33,6.0]
[1643391692387,2.95669142,91.401,91.323,6.0]
[1643391692588,17.94369682,91.4,91.3,16.428]
[1643391692787,6.0,91.391,91.288,45.7081]
[1643391692991,6.0,91.385,91.288,45.7081]
[1643391693286,7.51569682,91.385,91.288,45.7081]
[1643391693488,44.704499,91.38,91.288,45.7081]
[1643391693886,44.704499,91.38,91.289,0.25]
[1643391694087,3.20669142,91.379,91.298,6.0]
[1643391694291,6.0,91.37,91.299,0.25]
[1643391694487,0.25,91.379,91.299,0.25]
[1643391694687,44.704499,91.38,91.299,0.25]
[1643391694887,6.0,91.37,91.299,0.25]
[1643391695088,6.0,91.37,91.3,22.429]
[1643391695387,44.704499,91.38,91.301,0.25]
[1643391695599,44.704499,91.38,91.3,6.0]
[1643391695797,3.20669142,91.379,91.301,0.25]
[1643391696695,2.95669142,91.378,91.301,0.25]
[1643391697095,16.434,91.37,91.301,0.25]
[1643391697296,16.434,91.37,91.299,0.25]
[1643391697997,0.25,91.369,91.299,0.25]
[1643391698498,1.51569682,91.377,91.299,0.25]
[1643391698699,0.25,91.376,91.299,0.25]
[1643391699097,6.0,91.37,91.299,0.25]
[1643391699401,0.25,91.369,91.299,0.25]
[1643391700397,6.0,91.37,91.299,0.25]
[1643391701499,61.135499,91.38,91.3,6.0]
[1643391701701,0.25,91.369,91.3,6.0]
[1643391701903,0.25,91.369,91.301,0.25]
[1643391702502,0.25,91.369,91.3,6.0]
[1643391702922,0.25,91.369,91.288,45.7081]
[1643391702923,6.0,91.368,91.288,45.7081]
[1643391703120,6.0,91.368,91.27,16.432]
[1643391703121,6.0,91.366,91.27,30.012]
[1643391703323,7.51569682,91.366,91.27,16.432]
[1643391703521,6.0,91.359,91.28,6.0]
[1643391703921,6.0,91.356,91.28,6.0]
[1643391704120,6.0,91.359,91.28,6.0]
[1643391704320,6.0,91.355,91.28,6.0]
[1643391704528,6.0,91.359,91.281,0.25]
[1643391704822,1.51569682,91.358,91.28,6.0]
[1643391705026,1.51569682,91.357,91.281,6.0]
[1643391705221,1.51569682,91.353,91.281,6.0]
[1643391705421,44.14453783,91.352,91.281,6.0]
[1643391705822,45.66023465,91.352,91.281,6.0]
[1643391706024,44.14453783,91.352,91.281,6.0]
[1643391706827,44.14453783,91.352,91.282,0.25]
[1643391708527,44.14453783,91.352,91.282,6.25]
[1643391708736,0.25,91.351,91.282,6.25]
[1643391709829,0.25,91.351,91.282,0.25]
[1643391713435,1.51569682,91.352,91.283,2.50409603]
[1643391713634,1.51569682,91.364,91.293,6.0]
[1643391713836,1.51569682,91.368,91.294,24.5166]
[1643391714033,1.51569682,91.368,91.295,23.0496]
[1643391714434,46.65404929,91.367,91.305,6.0]
[1643391714837,46.65404929,91.367,91.306,0.25]
[1643391715437,46.65404929,91.367,91.305,6.0]
[1643391716736,1.51569682,91.365,91.305,6.0]
[1643391717037,1.51569682,91.363,91.305,6.0]
[1643391718138,1.51569682,91.362,91.305,6.0]
[1643391720439,1.51569682,91.361,91.305,6.0]
[1643391720643,1.51569682,91.356,91.305,6.0]
[1643391720838,1.51569682,91.359,91.305,6.0]
[1643391721243,2.96622881,91.384,91.305,6.0]
[1643391721244,1.51569682,91.366,91.306,109.35]
[1643391721439,1.51569682,91.366,91.306,133.8961]
[1643391721641,2.96622881,91.392,91.316,6.0]
[1643391721642,1.51569682,91.367,91.316,6.0]
[1643391721847,1.51569682,91.368,91.317,0.25]
[1643391722149,40.14204102,91.373,91.317,0.25]
[1643391723140,1.51569682,91.375,91.317,0.25]
[1643391723340,1.51569682,91.379,91.317,24.1284]
[1643391723540,1.51569682,91.38,91.327,6.0]
[1643391723741,1.51569682,91.376,91.327,6.0]
[1643391723941,1.51569682,91.376,91.328,47.3782]
[1643391724145,1.51569682,91.376,91.338,6.0]
[1643391724441,1.51569682,91.377,91.338,6.0]
[1643391724841,1.51569682,91.376,91.338,6.0]
[1643391725242,1.51569682,91.377,91.339,0.25]
[1643391725443,1.51569682,91.38,91.339,0.25]
[1643391725645,1.51569682,91.381,91.339,0.25]
[1643391725850,1.51569682,91.388,91.339,0.25]
[1643391726045,1.51569682,91.387,91.339,0.25]
[1643391726446,47.45819061,91.386,91.339,0.25]
[1643391726645,0.25,91.385,91.338,6.0]
[1643391726846,1.51569682,91.383,91.3,13.58]
[1643391727044,3.20669142,91.385,91.29,13.58]
[1643391727045,1.51569682,91.377,91.29,13.58]
[1643391727247,1.51569682,91.373,91.29,13.58]
[1643391727446,1.51569682,91.369,91.29,13.58]
[1643391727854,1.51569682,91.369,91.291,22.7653]
[1643391728045,2.95669142,91.384,91.301,6.0]
[1643391728046,1.51569682,91.368,91.301,6.0]
[1643391728645,1.51569682,91.368,91.302,0.25]
[1643391729046,1.51569682,91.371,91.302,0.25]
[1643391729548,1.51569682,91.376,91.302,6.25]
[1643391729946,1.51569682,91.377,91.303,23.5431]
[1643391730150,1.51569682,91.377,91.313,6.0]
[1643391730349,1.51569682,91.377,91.314,0.25]
[1643391730548,47.45819061,91.386,91.314,0.25]
[1643391730549,1.51569682,91.378,91.314,0.25]
[1643391731746,1.76569682,91.377,91.314,0.25]
[1643391731946,1.76569682,91.377,91.313,6.0]
[1643391731947,0.25,91.377,91.313,6.0]
[1643391732149,8.95669142,91.376,91.28,13.58]
[1643391732347,8.95669142,91.376,91.277,24.3832]
[1643391732348,0.25,91.375,91.277,24.3832]
[1643391732547,3.20669142,91.375,91.277,24.3832]
[1643391732749,0.25,91.375,91.277,24.3832]
[1643391732945,6.0,91.365,91.277,24.3832]
[1643391733150,6.0,91.364,91.277,24.3832]
[1643391733347,8.95669142,91.364,91.277,24.3832]
[1643391733551,41.36074158,91.349,91.277,24.3832]
[1643391734350,41.36074158,91.349,91.278,0.25]
[1643391735556,0.25,91.348,91.278,0.25]
[1643391735861,0.25,91.348,91.25,30.017]
[1643391736057,6.0,91.339,91.26,6.0]
[1643391736255,6.0,91.339,91.231,46.6888]
[1643391736256,6.0,91.339,91.254,6.0]
[1643391736455,6.0,91.339,91.231,46.6888]
[1643391736456,6.0,91.33,91.241,6.0]
[1643391737155,6.0,91.337,91.241,6.0]
[1643391737355,6.0,91.337,91.242,0.25]
[1643391738058,16.441,91.33,91.242,0.25]
[1643391738457,43.84763394,91.319,91.242,0.25]
[1643391739858,43.84763394,91.319,91.242,22.8451]
[1643391740059,6.0,91.309,91.252,6.0]
[1643391740257,6.0,91.309,91.253,0.25]
[1643391741259,0.25,91.308,91.253,0.25]
[1643391743060,0.25,91.308,91.243,0.25]
[1643391743460,0.25,91.308,91.252,6.0]
[1643391743862,0.25,91.308,91.253,0.25]
[1643391744259,6.0,91.309,91.253,0.25]
[1643391747765,6.0,91.309,91.253,109.35]
[1643391747965,13.58,91.37,91.264,109.1]
[1643391748170,2.96622881,91.382,91.266,109.1]
[1643391748371,2.96622881,91.396,91.28,13.58]
[1643391748569,16.43,91.39,91.29,6.0]
[1643391748769,35.52159019,91.389,91.291,0.25]
[1643391748969,35.52159019,91.389,91.3,16.427]
[1643391749175,35.52159019,91.389,91.301,46.4133]
[1643391749367,6.0,91.379,91.31,6.0]
[1643391749567,6.0,91.379,91.311,6.0]
[1643391749771,6.0,91.379,91.312,0.25]
[1643391750270,0.25,91.378,91.312,0.25]
[1643391750474,0.25,91.378,91.312,6.25]
[1643391750691,0.25,91.378,91.312,6.0]
[1643391750881,2.95669142,91.377,91.285,2.50409603]
[1643391751075,2.95669142,91.377,91.27,13.58]
[1643391751275,2.95669142,91.377,91.28,6.0]
[1643391751695,2.95669142,91.377,91.281,0.25]
[1643391752098,16.433,91.37,91.281,22.9807]
[1643391752495,2.95669142,91.377,91.291,6.0]
[1643391752695,6.0,91.379,91.292,131.7384]
[1643391752897,2.96622881,91.408,91.292,137.9884]
[1643391753097,13.58,91.42,91.3,6.0]
[1643391753405,2.96622881,91.428,91.31,13.58]
[1643391753596,2.96622881,91.445,91.33,54.723]
[1643391753798,2.96622881,91.469,91.34,13.58]
[1643391753997,4.38,91.46,91.341,6.0]
[1643391754196,44.03911245,91.486,91.35,6.0]
[1643391754499,3.03250392,91.485,91.39,16.409]
[1643391754796,3.03250392,91.485,91.391,47.3698]
[1643391754997,41.07288364,91.486,91.401,6.0]
[1643391755196,41.07288364,91.486,91.402,109.1]
[1643391755397,2.96622881,91.5,91.411,109.1]
[1643391755600,2.96622881,91.5,91.421,6.0]
[1643391755805,2.96622881,91.501,91.422,0.25]
[1643391756008,3.03224689,91.509,91.422,0.25]
[1643391756009,2.96622881,91.508,91.423,6.0]
[1643391756200,0.25,91.5,91.423,6.0]
[1643391756501,6.0,91.5,91.424,0.25]
[1643391757503,6.0,91.5,91.424,109.35]
[1643391757903,6.0,91.5,91.434,6.0]
[1643391758302,6.0,91.5,91.435,0.25]
[1643391758508,6.0,91.5,91.44,6.0]
[1643391758903,6.0,91.5,91.441,6.25]
[1643391759107,0.25,91.499,91.441,6.0]
[1643391759418,48.0984,91.539,91.441,6.0]
[1643391759614,16.403,91.54,91.442,0.25]
[1643391760009,16.403,91.54,91.45,6.0]
[1643391760411,47.2745434,91.539,91.451,0.25]
[1643391760611,16.406,91.53,91.451,0.25]
[1643391760811,6.0,91.529,91.44,13.58]
[1643391761016,2.95669142,91.523,91.402,47.2411]
[1643391761211,2.95669142,91.495,91.402,47.2411]
[1643391761412,48.74285384,91.494,91.402,47.2411]
[1643391761619,16.412,91.49,91.402,47.2411]
[1643391762419,16.412,91.49,91.412,6.0]
[1643391763224,16.412,91.49,91.41,6.0]
[1643391763421,16.416,91.47,91.4,6.0]
[1643391763624,16.416,91.47,91.38,13.58]
[1643391763625,16.416,91.47,91.364,48.7991]
[1643391763825,44.05371066,91.459,91.311,152.3908]
[1643391764025,44.05371066,91.459,91.33,13.58]
[1643391764225,44.05371066,91.459,91.33,16.08986049]
[1643391764529,6.0,91.449,91.35,16.419]
[1643391764725,44.05371066,91.459,91.36,6.0]
[1643391765127,44.05371066,91.459,91.361,6.25]
[1643391765325,0.25,91.458,91.361,6.25]
[1643391765525,16.419,91.45,91.361,6.25]
[1643391765927,16.419,91.45,91.37,6.0]
[1643391766128,16.419,91.45,91.371,6.0]
[1643391766326,0.25,91.458,91.371,6.25]
[1643391766529,0.25,91.458,91.371,0.25]
[1643391766730,0.25,91.458,91.381,6.0]
[1643391766927,0.25,91.458,91.371,0.25]
[1643391767127,0.25,91.458,91.371,6.25]
[1643391767529,0.25,91.458,91.372,2.50986049]
[1643391767936,0.25,91.458,91.382,6.0]
[1643391768435,0.25,91.458,91.383,0.25]
[1643391768641,0.25,91.458,91.382,6.0]
[1643391768835,0.25,91.458,91.361,23.9992]
[1643391769036,6.0,91.449,91.371,6.0]
[1643391769735,6.0,91.449,91.372,2.50986049]
[1643391770136,6.0,91.449,91.382,6.0]
[1643391770353,6.0,91.449,91.383,0.25]
[1643391770564,6.0,91.449,91.383,2.75986049]
[1643391770761,6.0,91.449,91.384,2.50986049]
[1643391770979,6.0,91.449,91.393,6.0]
[1643391771165,6.0,91.449,91.394,6.0]
[1643391771361,6.0,91.449,91.395,0.25]
[1643391771561,44.05371066,91.459,91.395,0.25]
[1643391772163,6.0,91.449,91.395,0.25]
[1643391772662,6.0,91.449,91.38,6.0]
[1643391773063,6.0,91.449,91.34,6.0]
[1643391773261,0.25,91.448,91.341,0.25]
[1643391773463,6.0,91.445,91.341,0.25]
[1643391773669,0.25,91.448,91.342,2.50986049]
[1643391773867,0.25,91.448,91.352,6.0]
[1643391774167,0.25,91.448,91.353,32.46136049]
[1643391774369,0.25,91.448,91.354,109.35]
[1643391774569,0.25,91.448,91.364,6.0]
[1643391774769,44.05371066,91.459,91.365,0.25]
[1643391774969,0.25,91.458,91.365,0.25]
[1643391775170,0.25,91.458,91.365,6.25]
[1643391775370,0.25,91.458,91.37,6.0]
[1643391775672,0.25,91.458,91.375,6.0]
[1643391775870,0.25,91.458,91.376,0.25]
[1643391777074,0.25,91.458,91.371,0.25]
[1643391777672,44.05371066,91.459,91.372,2.50986049]
[1643391777873,16.414,91.48,91.373,0.25]
[1643391778073,46.4731,91.488,91.382,6.0]
[1643391778272,0.04319592,91.496,91.39,13.58]
[1643391778472,0.04319592,91.496,91.391,24.3307]
[1643391778673,0.04319592,91.496,91.4,6.0]
[1643391778880,0.04319592,91.496,91.401,6.25]
[1643391779077,0.04319592,91.496,91.41,6.0]
[1643391779277,0.04319592,91.496,91.411,109.35]
[1643391779575,0.04319592,91.496,91.412,29.3969]
[1643391779775,0.04319592,91.496,91.421,6.0]
[1643391779975,0.04319592,91.496,91.414,24.5536]
[1643391780176,0.04319592,91.496,91.423,6.0]
[1643391780475,0.04319592,91.496,91.424,6.0]
[1643391781480,0.04319592,91.496,91.425,0.25]
[1643391781676,0.04319592,91.496,91.424,6.0]
[1643391782276,0.04319592,91.496,91.425,0.25]
[1643391783078,0.04319592,91.496,91.424,6.0]
[1643391783279,0.04319592,91.496,91.425,0.25]
[1643391784278,0.04319592,91.496,91.426,2.5156294]
[1643391784478,0.04319592,91.496,91.44,13.58]
[1643391784878,0.04319592,91.496,91.45,6.0]
[1643391785079,0.04319592,91.496,91.451,30.3333]
[1643391785277,0.04319592,91.496,91.451,30.5833]
[1643391785478,0.04319592,91.496,91.46,6.0]
[1643391785891,0.04319592,91.496,91.462,6.0]
[1643391786080,0.04319592,91.496,91.47,6.0]
[1643391786279,0.04319592,91.496,91.471,0.25]
[1643391787281,0.04319592,91.496,91.464,6.0]
[1643391788092,0.04319592,91.496,91.463,6.0]
[1643391789310,0.04319592,91.496,91.453,24.139]
[1643391789508,0.04319592,91.496,91.454,0.25]
[1643391790609,0.04319592,91.496,91.463,6.0]
[1643391791412,0.04319592,91.496,91.464,109.1]
[1643391791612,0.04319592,91.496,91.463,6.0]
[1643391792912,0.04319592,91.496,91.464,0.25]
[1643391793314,0.04319592,91.496,91.463,6.0]
[1643391793516,0.04319592,91.496,91.453,24.139]
[1643391795620,0.04319592,91.496,91.41,13.58]
[1643391796023,0.04319592,91.496,91.42,6.0]
[1643391796421,0.04319592,91.496,91.411,6.0]
[1643391796921,0.04319592,91.496,91.412,0.25]
[1643391797127,0.04319592,91.496,91.412,6.25]
[1643391797323,0.04319592,91.496,91.413,0.25]
[1643391797926,0.04319592,91.496,91.413,47.7537]
[1643391798225,0.04319592,91.496,91.413,53.7537]
[1643391799625,0.04319592,91.496,91.42,6.0]
[1643391799827,0.04319592,91.496,91.423,6.0]
[1643391800024,0.04319592,91.496,91.424,23.0417]
[1643391800225,0.04319592,91.496,91.424,23.2917]
[1643391800426,0.04319592,91.496,91.424,23.0417]
[1643391800634,0.04319592,91.496,91.434,6.0]
[1643391800829,0.04319592,91.496,91.435,0.25]
[1643391801428,0.04319592,91.496,91.44,13.58]
[1643391801625,0.04319592,91.496,91.446,6.0]
[1643391801926,0.04319592,91.496,91.45,6.0]
[1643391802128,0.04319592,91.496,91.457,6.0]
[1643391802326,0.04319592,91.496,91.447,48.4912]
[1643391803129,0.04319592,91.496,91.447,48.2412]
[1643391803328,0.04319592,91.496,91.448,0.25]
[1643391804840,0.04319592,91.496,91.457,6.0]
[1643391805034,0.04319592,91.496,91.448,0.25]
[1643391805533,0.04319592,91.496,91.457,6.0]
[1643391806037,0.04319592,91.496,91.458,0.25]
[1643391807035,0.04319592,91.496,91.448,0.25]
[1643391808344,0.04319592,91.496,91.457,6.0]
[1643391808743,0.04319592,91.496,91.458,0.25]
[1643391809542,0.04319592,91.496,91.46,6.0]
[1643391809943,0.04319592,91.496,91.461,0.25]
[1643391810957,0.04319592,91.496,91.461,24.2554]
[1643391811145,0.04319592,91.496,91.462,109.1]
[1643391811344,0.04319592,91.496,91.471,6.0]
[1643391811547,0.04319592,91.496,91.472,6.0]
[1643391811946,0.04319592,91.496,91.473,0.25]
[1643391814151,0.04319592,91.496,91.473,109.35]
[1643391814451,0.04319592,91.496,91.483,6.0]
[1643391814653,0.04319592,91.496,91.483,115.1]
[1643391815464,0.04319592,91.496,91.484,0.25]
[1643391816676,0.00319592,91.496,91.484,0.25]
[1643391816870,0.00319592,91.496,91.484,48.0884]
[1643391817072,0.00319592,91.496,91.494,6.0]
[1643391817271,0.00319592,91.496,91.495,109.35]
[1643391820576,0.00319592,91.496,91.495,0.25]
[1643391821175,0.00319592,91.496,91.494,6.0]
[1643391821376,0.00319592,91.496,91.495,0.25]
[1643391821575,0.00319592,91.496,91.494,6.0]
[1643391821781,0.00319592,91.496,91.485,0.25]
[1643391821782,0.00319592,91.496,91.495,0.25]
[1643391821978,0.00319592,91.496,91.485,0.25]
[1643391822180,0.00319592,91.496,91.494,6.0]
[1643391822381,0.00319592,91.496,91.495,0.25]
[1643391822578,0.00319592,91.496,91.495,6.25]
[1643391822780,0.00319592,91.496,91.495,0.25]
[1643391823581,0.00319592,91.496,91.486,0.25]
[1643391825786,0.00319592,91.496,91.45,13.58]
[1643391825986,0.00319592,91.496,91.451,22.7965]
[1643391827190,0.00319592,91.496,91.446,24.4064]
[1643391827387,0.00319592,91.496,91.447,0.25]
[1643391827987,0.00319592,91.496,91.446,24.4064]
[1643391829688,0.00319592,91.496,91.456,6.0]
[1643391830091,0.00319592,91.496,91.446,24.4064]
[1643391830296,0.00319592,91.496,91.447,0.25]
[1643391832097,0.00319592,91.496,91.433,109.1]
[1643391832496,0.00319592,91.496,91.443,6.0]
[1643391833296,0.00319592,91.496,91.444,23.109]
[1643391835123,0.00319592,91.496,91.455,109.1]
[1643391835325,0.00319592,91.496,91.441,23.3597]
[1643391835528,42.41114806,91.494,91.441,23.3597]
[1643391835731,0.00319592,91.496,91.441,23.3597]
[1643391835930,0.00319592,91.496,91.451,6.0]
[1643391836525,0.00319592,91.496,91.452,6.0]
[1643391839830,0.00319592,91.496,91.442,23.6864]
[1643391840834,0.00319592,91.496,91.443,0.25]
[1643391841242,0.00319592,91.496,91.42,13.58]
[1643391841436,0.00319592,91.496,91.396,46.9712]
[1643391841633,43.23606368,91.494,91.406,6.0]
[1643391841840,43.23606368,91.494,91.396,46.9712]
[1643391842237,43.23606368,91.494,91.406,6.0]
[1643391842840,6.0,91.484,91.396,46.9712]
[1643391843042,6.0,91.483,91.396,46.9712]
[1643391843244,8.95669142,91.483,91.397,0.25]
[1643391843441,6.0,91.48,91.397,0.25]
[1643391843641,2.95669142,91.482,91.397,0.25]
[1643391843841,2.95669142,91.479,91.397,0.25]
[1643391845043,0.25,91.478,91.397,0.25]
[1643391845545,2.95669142,91.479,91.397,0.25]
[1643391845753,24.8133,91.493,91.397,0.25]
[1643391846348,2.95669142,91.492,91.397,0.25]
[1643391846546,2.95669142,91.492,91.406,6.0]
[1643391846750,2.95669142,91.492,91.407,0.25]
[1643391846949,2.95669142,91.492,91.407,23.6269]
[1643391847150,24.8133,91.493,91.407,23.6269]
[1643391847348,2.95669142,91.492,91.407,23.6269]
[1643391848049,43.23606368,91.494,91.418,109.1]
[1643391848253,16.407,91.52,91.42,13.58]
[1643391848450,16.407,91.52,91.428,6.0]
[1643391848748,6.0,91.51,91.43,6.0]
[1643391848948,6.0,91.51,91.431,109.1]
[1643391849148,6.0,91.51,91.441,6.0]
[1643391849447,39.55123552,91.509,91.442,0.25]
[1643391849652,39.55123552,91.509,91.442,6.25]
[1643391849848,6.0,91.499,91.443,109.1]
[1643391850048,6.0,91.499,91.453,6.0]
[1643391850349,16.404,91.54,91.443,109.1]
[1643391850551,5.99099099,91.539,91.454,109.1]
[1643391850748,5.99099099,91.539,91.455,23.2327]
[1643391850952,2.96622881,91.553,91.464,6.0]
[1643391851149,47.80426107,91.552,91.465,6.0]